fUSD/lending_fUSD_20240516
["ID","MTS","AMOUNT","RATE_DAILY","PERIOD"]
[327113591,1715825442524,-743.04,0.00012857,2]
[327113592,1715825442534,-1054.35,0.00012857,2]
[327113593,1715825442544,-500.0,0.00012857,2]
[327113594,1715825442553,-557.25887499,0.00012857,2]
[327113595,1715825442564,-500.0,0.00012857,2]
[327113596,1715825442573,-500.0,0.00012857,2]
[327113597,1715825442583,-893.6,0.00012857,2]
[327113598,1715825442592,-500.0,0.00012857,2]
[327113599,1715825442601,-500.0,0.00012857,2]
[327113600,1715825442611,-699.85,0.00012857,2]
[327113601,1715825442620,-777.25,0.00012857,2]
[327113602,1715825442630,-500.0,0.00012857,2]
[327113603,1715825442639,-500.0,0.00012857,2]
[327113604,1715825442650,-504.01783999,0.00012857,2]
[327113605,1715825442660,-504.98289904,0.00012857,2]
[327113606,1715825442670,-1352.37,0.00012857,2]
[327113607,1715825442680,-4475.66,0.00012857,2]
[327113608,1715825442690,-552.76,0.00012857,2]
[327113609,1715825442701,-505.62929106,0.00012857,2]
[327113610,1715825442711,-500.0,0.00012857,2]
[327113611,1715825442721,-500.0,0.00012857,2]
[327113612,1715825442731,-500.0,0.00012857,2]
[327113613,1715825442741,-500.0,0.00012857,2]
[327113614,1715825442751,-500.0,0.00012857,2]
[327113615,1715825442761,-500.0,0.00012857,2]
[327113616,1715825442771,-500.0,0.00012857,2]
[327113617,1715825442782,-1191.76,0.00012857,2]
[327113618,1715825442793,-2346.23,0.00012857,2]
[327113619,1715825442805,-153.86237949,0.00012857,2]
[327113620,1715825442816,-748.11,0.00012857,2]
[327113621,1715825442826,-1217.39,0.00012857,2]
[327113622,1715825442836,-500.0,0.00012857,2]
[327113623,1715825442849,-500.0,0.00012857,2]
[327113624,1715825442859,-1123.85,0.00012857,2]
[327113625,1715825442869,-500.0,0.00012857,2]
[327113626,1715825442878,-500.0,0.00012857,2]
[327113627,1715825442890,-500.0,0.00012857,2]
[327113628,1715825442899,-710.45,0.00012857,2]
[327113629,1715825442910,-506.25451517,0.00012857,2]
[327113630,1715825442919,-160.00373383,0.00012857,2]
[327113631,1715825442928,-205.93853852,0.00012857,2]
[327113632,1715825442937,-523.49,0.00012857,2]
[327113633,1715825442946,-500.0,0.00012857,2]
[327113634,1715825442956,-500.0,0.00012857,2]
[327113635,1715825442965,-590.24,0.00012857,2]
[327113636,1715825442974,-503.19966358,0.00012857,2]
[327113637,1715825442983,-500.0,0.00012857,2]
[327113638,1715825442992,-500.0,0.00012857,2]
[327113639,1715825443001,-520.07274077,0.00012857,2]
[327113640,1715825443011,-500.0,0.00012857,2]
[327113641,1715825443021,-340.94252277,0.00012857,2]
[327113644,1715825443634,-443.43736833,0.00012328,2]
[327113645,1715825443646,-65.89563305,0.00012328,2]
[327113646,1715825443656,-159.05747723,0.00012857,2]
[327113647,1715825443666,-7488.67373294,0.00012857,2]
[327113648,1715825443678,-1538.7074705,0.00012857,2]
[327113650,1715825443690,-739.80553033,0.00012857,2]
[327113652,1715825443815,-2351.41326623,0.00012857,2]
[327113653,1715825443826,-288.69409419,0.00012857,2]
[327113654,1715825444268,-471.65590581,0.00012857,2]
[327113655,1715825444278,-500.0,0.00012857,2]
[327113656,1715825444288,-333.94525052,0.00012857,2]
[327113657,1715825444300,-300.49849974,0.00012857,2]
[327113658,1715825444311,-1281.57,0.00012857,2]
[327113659,1715825444320,-500.0,0.00012857,2]
[327113660,1715825444329,-553.67,0.00012857,2]
[327113661,1715825444338,-500.0,0.00012857,2]
[327113662,1715825444347,-500.0,0.00012857,2]
[327113663,1715825444357,-500.0,0.00012857,2]
[327113664,1715825444367,-500.0,0.00012857,2]
[327113665,1715825444376,-500.0,0.00012857,2]
[327113666,1715825444386,-2763.11,0.00012857,2]
[327113668,1715825444396,-500.0,0.00012857,2]
[327113670,1715825444413,-500.0,0.00012857,2]
[327113672,1715825444550,-500.0,0.00012857,2]
[327113673,1715825444567,-890.03,0.00012857,2]
[327113674,1715825444577,-500.0,0.00012857,2]
[327113675,1715825444587,-647.32,0.00012857,2]
[327113676,1715825444597,-500.0,0.00012857,2]
[327113677,1715825444607,-500.0,0.00012857,2]
[327113678,1715825444617,-500.0,0.00012857,2]
[327113679,1715825444626,-1203.77,0.00012857,2]
[327113680,1715825444636,-500.0,0.00012857,2]
[327113681,1715825444645,-588.69407218,0.00012857,2]
[327113682,1715825444657,-661.99592782,0.00012857,2]
[327113683,1715825444667,-44.70407326,0.00012857,2]
[327113684,1715825444678,-286.313,0.00012857,2]
[327113685,1715825445474,-286.37292674,0.00012857,2]
[327113686,1715825445488,-500.0,0.00012857,2]
[327113687,1715825445498,-459.02707326,0.00012857,2]
[327113688,1715825445576,-40.97292674,0.00012857,2]
[327113689,1715825445585,-1407.66,0.00012857,2]
[327113690,1715825445594,-500.0,0.00012857,2]
[327113691,1715825445603,-601.12,0.00012857,2]
[327113692,1715825445612,-500.0,0.00012857,2]
[327113693,1715825445621,-500.0,0.00012857,2]
[327113694,1715825445630,-500.0,0.00012857,2]
[327113695,1715825445639,-31.85744531,0.00012857,2]
[327113696,1715825445650,-468.14255469,0.00012857,2]
[327113697,1715825445659,-309.16883133,0.00012857,2]
[327113698,1715825445670,-932.28464256,0.00012857,2]
[327113699,1715825445680,-558.03669831,0.00012857,2]
[327113700,1715825446001,-477.65745304,0.00012857,2]
[327113701,1715825446012,-313.28237476,0.00012857,2]
[327113702,1715825446022,-1017.35,0.00012857,2]
[327113703,1715825446031,-500.0,0.00012857,2]
[327113704,1715825446040,-500.0,0.00012857,2]
[327113705,1715825446049,-1773.69,0.00012857,2]
[327113706,1715825446058,-676.13,0.00012857,2]
[327113707,1715825446068,-578.58,0.00012857,2]
[327113708,1715825446076,-500.0,0.00012857,2]
[327113709,1715825446086,-500.0,0.00012857,2]
[327113710,1715825446096,-1131.32,0.00012857,2]
[327113711,1715825446106,-500.0,0.00012857,2]
[327113712,1715825446116,-500.0,0.00012857,2]
[327113713,1715825446125,-500.0,0.00012857,2]
[327113714,1715825446135,-1593.93,0.00012857,2]
[327113715,1715825446145,-500.0,0.00012857,2]
[327113716,1715825446154,-500.0,0.00012857,2]
[327113717,1715825446164,-356.0203847,0.00012857,2]
[327113718,1715825446173,-500.0,0.00012857,2]
[327113719,1715825446182,-500.0,0.00012857,2]
[327113720,1715825446191,-500.0,0.00012857,2]
[327113721,1715825446201,-1362.68,0.00012857,2]
[327113722,1715825446210,-2079.97,0.00012857,2]
[327113723,1715825446220,-618.35,0.00012857,2]
[327113724,1715825446230,-512.47836835,0.00012857,2]
[327113725,1715825446240,-500.0,0.00012857,2]
[327113726,1715825446249,-500.0,0.00012857,2]
[327113727,1715825446259,-500.0,0.00012857,2]
[327113728,1715825446268,-677.88,0.00012857,2]
[327113729,1715825446278,-782.0,0.00012857,2]
[327113730,1715825446287,-500.0,0.00012857,2]
[327113731,1715825446296,-500.0,0.00012857,2]
[327113732,1715825446305,-744.92,0.00012857,2]
[327113733,1715825446316,-500.0,0.00012857,2]
[327113734,1715825446325,-500.0,0.00012857,2]
[327113735,1715825446334,-1568.54,0.00012857,2]
[327113736,1715825446344,-567.19,0.00012857,2]
[327113737,1715825446353,-693.32,0.00012857,2]
[327113738,1715825446363,-500.0,0.00012857,2]
[327113739,1715825446372,-834.95,0.00012857,2]
[327113740,1715825446381,-500.0,0.00012857,2]
[327113741,1715825446391,-504.74154554,0.00012857,2]
[327113742,1715825446400,-994.71,0.00012857,2]
[327113743,1715825446416,-500.0,0.00012857,2]
[327113744,1715825446426,-500.0,0.00012857,2]
[327113745,1715825446435,-500.0,0.00012857,2]
[327113746,1715825446445,-500.0,0.00012857,2]
[327113749,1715825446455,-500.0,0.00012857,2]
[327113752,1715825446464,-1257.04,0.00012857,2]
[327113754,1715825446473,-500.0,0.00012857,2]
[327113756,1715825446485,-593.24,0.00012857,2]
[327113758,1715825446495,-1373.34,0.00012857,2]
[327113760,1715825446505,-9880.71,0.00012857,2]
[327113762,1715825446515,-507.01,0.00012857,2]
[327113763,1715825446524,-500.0,0.00012857,2]
[327113764,1715825446534,-500.0,0.00012857,2]
[327113765,1715825446544,-794.95,0.00012857,2]
[327113766,1715825446554,-500.0,0.00012857,2]
[327113767,1715825446565,-574.36,0.00012857,2]
[327113768,1715825446574,-500.0,0.00012857,2]
[327113769,1715825446584,-1177.88,0.00012857,2]
[327113770,1715825446593,-500.0,0.00012857,2]
[327113771,1715825446602,-500.0,0.00012857,2]
[327113772,1715825446611,-500.0,0.00012857,2]
[327113773,1715825446620,-1906.7331158,0.00012858,2]
[327113774,1715825446629,-711.9293118,0.00012858,2]
[327113775,1715825446748,-2198.3764176,0.00012858,2]
[327113776,1715825446778,-1839.813945,0.00012858,2]
[327113777,1715825446788,-29566.2223308,0.00012858,2]
[327113778,1715825446797,-302.2546495,0.00012858,2]
[327113779,1715825446806,-500.0,0.00012862,2]
[327113780,1715825446817,-500.0,0.00012862,2]
[327113781,1715825446826,-500.0,0.00012862,2]
[327113782,1715825446835,-500.0,0.00012862,2]
[327113783,1715825446845,-500.0,0.00012862,2]
[327113784,1715825446854,-500.0,0.00012862,2]
[327113785,1715825446863,-500.0,0.00012862,2]
[327113786,1715825446873,-500.0,0.00012862,2]
[327113787,1715825446882,-500.0,0.00012862,2]
[327113788,1715825446891,-500.0,0.00012862,2]
[327113789,1715825446900,-500.0,0.00012862,2]
[327113790,1715825446909,-500.0,0.00012862,2]
[327113791,1715825446918,-503.0854873,0.00012862,2]
[327113792,1715825446927,-500.0,0.00012862,2]
[327113793,1715825446937,-518.85,0.00012862,2]
[327113794,1715825446946,-536.69,0.00012862,2]
[327113795,1715825446955,-500.0,0.00012862,2]
[327113796,1715825446964,-500.0,0.00012862,2]
[327113797,1715825446973,-500.0,0.00012862,2]
[327113798,1715825446983,-500.0,0.00012862,2]
[327113799,1715825446992,-500.0,0.00012862,2]
[327113800,1715825447001,-500.0,0.00012862,2]
[327113801,1715825447010,-2841.39341698,0.00012863,2]
[327113802,1715825447020,-234.20358217,0.00012863,2]
[327113803,1715825447029,-209.47219274,0.00012863,2]
[327113804,1715825447039,-155.3068631,0.00012863,2]
[327113805,1715825447048,-792.1896189,0.00012863,2]
[327113806,1715825447057,-263.98450003,0.00012863,2]
[327113807,1715825447068,-4284.25167667,0.00012863,2]
[327113808,1715825447077,-178.43080109,0.00012863,2]
[327113809,1715825447086,-307.25961932,0.00012863,2]
[327113810,1715825447095,-5260.80051585,0.00012863,2]
[327113811,1715825447104,-195.63069033,0.00012863,2]
[327113812,1715825447114,-327.77507412,0.00012863,2]
[327113813,1715825447123,-201.58859931,0.00012863,2]
[327113814,1715825447132,-708.24,0.00012863,2]
[327113815,1715825447142,-500.0,0.00012863,2]
[327113816,1715825447151,-758.98,0.00012863,2]
[327113817,1715825447161,-500.0,0.00012863,2]
[327113818,1715825447170,-406.52462395,0.00012864,2]
[327113819,1715825447180,-158.31876965,0.00012864,2]
[327113820,1715825447189,-784.73215718,0.00012864,2]
[327113821,1715825447199,-587.91310915,0.00012864,2]
[327113822,1715825447209,-3889.43334501,0.00012864,2]
[327113823,1715825447219,-538.52,0.00012864,2]
[327113824,1715825447229,-538.52,0.00012864,2]
[327113825,1715825447239,-500.0,0.00012864,2]
[327113826,1715825447248,-500.0,0.00012864,2]
[327113827,1715825447258,-507.92141477,0.00012864,2]
[327113828,1715825447267,-500.0,0.00012864,2]
[327113829,1715825447276,-500.0,0.00012864,2]
[327113830,1715825447286,-645.37,0.00012864,2]
[327113831,1715825447295,-645.37,0.00012864,2]
[327113832,1715825447304,-500.0,0.00012864,2]
[327113833,1715825447314,-500.0,0.00012864,2]
[327113834,1715825447325,-500.0,0.00012864,2]
[327113835,1715825447334,-500.0,0.00012864,2]
[327113836,1715825447343,-765.06,0.00012864,2]
[327113837,1715825447353,-765.06,0.00012864,2]
[327113838,1715825447363,-505.88113693,0.00012864,2]
[327113839,1715825447372,-500.0,0.00012864,2]
[327113840,1715825447381,-500.0,0.00012864,2]
[327113841,1715825447391,-500.0,0.00012864,2]
[327113842,1715825447401,-500.0,0.00012864,2]
[327113843,1715825447415,-621.8,0.00012864,2]
[327113844,1715825447425,-1240.17,0.00012864,2]
[327113845,1715825447434,-621.8,0.00012864,2]
[327113846,1715825447444,-500.0,0.00012864,2]
[327113847,1715825447455,-1240.17,0.00012864,2]
[327113848,1715825447464,-500.0,0.00012864,2]
[327113849,1715825447474,-685.93,0.00012864,2]
[327113850,1715825447487,-685.93,0.00012864,2]
[327113851,1715825447497,-803.74,0.00012864,2]
[327113852,1715825447506,-803.74,0.00012864,2]
[327113853,1715825447515,-500.0,0.00012864,2]
[327113854,1715825447525,-500.0,0.00012864,2]
[327113855,1715825447534,-716.53,0.00012864,2]
[327113856,1715825447544,-716.53,0.00012864,2]
[327113857,1715825447554,-514.61696851,0.00012864,2]
[327113858,1715825447563,-716.53,0.00012864,2]
[327113859,1715825447573,-716.53,0.00012864,2]
[327113860,1715825447582,-500.0,0.00012864,2]
[327113861,1715825447592,-500.0,0.00012864,2]
[327113862,1715825447601,-500.0,0.00012864,2]
[327113863,1715825447611,-500.0,0.00012864,2]
[327113864,1715825447620,-896.2,0.00012864,2]
[327113865,1715825447630,-540.51,0.00012864,2]
[327113866,1715825447639,-896.2,0.00012864,2]
[327113867,1715825447649,-540.51,0.00012864,2]
[327113868,1715825447658,-783.35,0.00012864,2]
[327113869,1715825447668,-783.35,0.00012864,2]
[327113870,1715825447681,-500.0,0.00012864,2]
[327113871,1715825447690,-500.0,0.00012864,2]
[327113872,1715825447699,-500.0,0.00012864,2]
[327113873,1715825447708,-500.0,0.00012864,2]
[327113874,1715825447717,-646.4,0.00012864,2]
[327113875,1715825447727,-646.4,0.00012864,2]
[327113876,1715825447736,-500.0,0.00012864,2]
[327113877,1715825447745,-500.0,0.00012864,2]
[327113878,1715825447755,-770.45,0.00012864,2]
[327113879,1715825447764,-770.45,0.00012864,2]
[327113880,1715825447773,-500.0,0.00012864,2]
[327113881,1715825447782,-500.0,0.00012864,2]
[327113882,1715825447791,-164.62107049,0.00012864,2]
[327113883,1715825447801,-1548.6,0.00012864,2]
[327113884,1715825447810,-1548.6,0.00012864,2]
[327113885,1715825447820,-570.22,0.00012864,2]
[327113886,1715825447829,-570.22,0.00012864,2]
[327113887,1715825447838,-684.74,0.00012864,2]
[327113888,1715825447848,-684.74,0.00012864,2]
[327113889,1715825447857,-684.74,0.00012864,2]
[327113890,1715825447866,-684.74,0.00012864,2]
[327113891,1715825447875,-5154.6,0.00012864,2]
[327113892,1715825447884,-5154.6,0.00012864,2]
[327113893,1715825447894,-928.22,0.00012864,2]
[327113894,1715825447904,-500.0,0.00012864,2]
[327113895,1715825447913,-500.0,0.00012864,2]
[327113896,1715825447923,-928.22,0.00012864,2]
[327113897,1715825447932,-544.33867869,0.00012864,2]
[327113898,1715825447942,-500.0,0.00012864,2]
[327113899,1715825447953,-1500.51,0.00012864,2]
[327113900,1715825447963,-500.0,0.00012864,2]
[327113901,1715825447975,-1500.51,0.00012864,2]
[327113902,1715825447985,-500.0,0.00012864,2]
[327113903,1715825447996,-500.0,0.00012864,2]
[327113904,1715825448006,-500.0,0.00012864,2]
[327113905,1715825448017,-3624.1,0.00012864,2]
[327113906,1715825448026,-500.0,0.00012864,2]
[327113907,1715825448036,-3624.1,0.00012864,2]
[327113908,1715825448046,-500.0,0.00012864,2]
[327113909,1715825448055,-500.0,0.00012864,2]
[327113910,1715825448064,-602.57,0.00012864,2]
[327113911,1715825448073,-500.0,0.00012864,2]
[327113912,1715825448082,-602.57,0.00012864,2]
[327113913,1715825448092,-570.69,0.00012864,2]
[327113914,1715825448101,-500.0,0.00012864,2]
[327113915,1715825448111,-570.69,0.00012864,2]
[327113916,1715825448120,-586.41365205,0.00012864,2]
[327113917,1715825448129,-500.0,0.00012864,2]
[327113918,1715825448139,-500.0,0.00012864,2]
[327113919,1715825448148,-500.0,0.00012864,2]
[327113920,1715825448157,-500.0,0.00012864,2]
[327113921,1715825448167,-508.41912128,0.00012864,2]
[327113922,1715825448176,-500.0,0.00012864,2]
[327113923,1715825448185,-500.0,0.00012864,2]
[327113924,1715825448195,-520.95076259,0.00012864,2]
[327113925,1715825448204,-753.24,0.00012864,2]
[327113926,1715825448214,-753.24,0.00012864,2]
[327113927,1715825448223,-500.0,0.00012864,2]
[327113928,1715825448232,-753.24,0.00012864,2]
[327113929,1715825448242,-753.24,0.00012864,2]
[327113930,1715825448252,-500.0,0.00012864,2]
[327113931,1715825448261,-500.0,0.00012864,2]
[327113932,1715825448270,-352.45275673,0.00012864,2]
[327113933,1715825448280,-500.0,0.00012864,2]
[327113934,1715825448289,-556.9,0.00012864,2]
[327113935,1715825448298,-556.9,0.00012864,2]
[327113936,1715825448308,-500.0,0.00012864,2]
[327113937,1715825448318,-500.0,0.00012864,2]
[327113938,1715825448328,-500.0,0.00012864,2]
[327113939,1715825448337,-500.0,0.00012864,2]
[327113940,1715825448346,-743.04,0.00012864,2]
[327113941,1715825448355,-743.04,0.00012864,2]
[327113942,1715825448365,-1054.35,0.00012864,2]
[327113943,1715825448374,-1054.35,0.00012864,2]
[327113944,1715825448383,-500.0,0.00012864,2]
[327113945,1715825448392,-500.0,0.00012864,2]
[327113946,1715825448401,-500.0,0.00012864,2]
[327113947,1715825448416,-500.0,0.00012864,2]
[327113948,1715825448425,-500.0,0.00012864,2]
[327113949,1715825448433,-893.6,0.00012864,2]
[327113950,1715825448442,-768.64,0.00012864,2]
[327113951,1715825448453,-500.0,0.00012864,2]
[327113952,1715825448462,-893.6,0.00012864,2]
[327113953,1715825448471,-768.64,0.00012864,2]
[327113954,1715825448480,-500.0,0.00012864,2]
[327113955,1715825448492,-768.64,0.00012864,2]
[327113956,1715825448503,-500.0,0.00012864,2]
[327113957,1715825448512,-768.64,0.00012864,2]
[327113958,1715825448521,-500.0,0.00012864,2]
[327113959,1715825448531,-699.85,0.00012864,2]
[327113960,1715825448540,-777.25,0.00012864,2]
[327113961,1715825448549,-500.0,0.00012864,2]
[327113962,1715825448558,-699.85,0.00012864,2]
[327113963,1715825448569,-777.25,0.00012864,2]
[327113964,1715825448578,-500.0,0.00012864,2]
[327113965,1715825448587,-45.41966506,0.00012864,2]
[327113966,1715825450036,-4632.205704,0.00012328,2]
[327113967,1715825450125,-5859.244296,0.00012328,2]
[327113968,1715825450134,-10491.45,0.00012699,2]
[327113969,1715825450143,-1391.09601204,0.0001276,2]
[327113970,1715825450153,-19603.71520492,0.00012856,2]
[327113971,1715825450163,-10491.45,0.00012857,2]
[327113972,1715825450172,-454.58033494,0.00012864,2]
[327113973,1715825450182,-500.0,0.00012864,2]
[327113974,1715825450192,-1352.37,0.00012864,2]
[327113975,1715825450202,-4475.66,0.00012864,2]
[327113976,1715825450211,-1352.37,0.00012864,2]
[327113977,1715825450221,-4475.66,0.00012864,2]
[327113978,1715825450230,-552.76,0.00012864,2]
[327113979,1715825450239,-552.76,0.00012864,2]
[327113980,1715825450248,-500.0,0.00012864,2]
[327113981,1715825450257,-500.0,0.00012864,2]
[327113982,1715825450267,-743.15,0.00012864,2]
[327113983,1715825450276,-743.15,0.00012864,2]
[327113984,1715825450285,-500.0,0.00012864,2]
[327113985,1715825450294,-743.15,0.00012864,2]
[327113986,1715825450303,-743.15,0.00012864,2]
[327113987,1715825450313,-500.0,0.00012864,2]
[327113988,1715825450323,-500.0,0.00012864,2]
[327113989,1715825450332,-500.0,0.00012864,2]
[327113990,1715825450341,-500.0,0.00012864,2]
[327113991,1715825450350,-500.0,0.00012864,2]
[327113992,1715825450359,-500.0,0.00012864,2]
[327113993,1715825450368,-500.0,0.00012864,2]
[327113994,1715825450377,-500.0,0.00012864,2]
[327113995,1715825450387,-500.0,0.00012864,2]
[327113996,1715825450396,-262.11279385,0.00012864,2]
[327113997,1715825450413,-350.23917591,0.00012864,2]
[327113998,1715825450422,-42.43641815,0.00012864,2]
[327114001,1715825582542,200.0,0.000128,30]
[327114002,1715825582585,200.0,0.000128,30]
[327114003,1715825582629,200.0,0.000128,30]
[327114004,1715825582684,200.0,0.000128,30]
[327114005,1715825582751,239.8303343,0.000128,30]
[327114021,1715826496366,6033.0,8e-05,2]
[327114022,1715826572603,20212.4485963,8e-05,2]
[327114023,1715826586529,4596.21594998,8e-05,2]
[327114024,1715826593499,560.68534116,8e-05,2]
[327114025,1715826609451,560.68534116,8e-05,2]
[327114029,1715826627454,560.68534116,8e-05,2]
[327114031,1715826631764,-461.68774918,9.61e-05,2]
[327114032,1715826631775,-929.40826286,9.61e-05,2]
[327114033,1715826631784,-155.0,9.61e-05,2]
[327114034,1715826631794,-1454.93740111,9.61e-05,2]
[327114035,1715826631804,-544.97034646,9.61e-05,2]
[327114036,1715826631814,-155.0,9.611e-05,2]
[327114037,1715826631826,-1244.75977175,9.611e-05,2]
[327114038,1715826631835,-271.31590332,9.612e-05,2]
[327114039,1715826631847,-1617.38164874,9.612e-05,2]
[327114040,1715826631856,-150.0,9.614e-05,2]
[327114041,1715826631865,-150.0,9.614e-05,2]
[327114042,1715826631875,-373.91835141,9.629e-05,2]
[327114043,1715826631888,-962.47257914,9.629e-05,2]
[327114044,1715826632000,-559.79059872,9.629e-05,2]
[327114045,1715826632009,-244.07480737,9.648e-05,2]
[327114046,1715826632018,-188.19,0.00010411,2]
[327114047,1715826632027,-800.0,0.00010506,2]
[327114048,1715826632036,-580.8,0.00010875,2]
[327114049,1715826632193,-486.46,0.00010959,2]
[327114050,1715826632203,-250.0,0.00011046,2]
[327114051,1715826632212,-308.71,0.00011113,2]
[327114052,1715826632221,-155.5,0.00011203,2]
[327114053,1715826632231,-800.0,0.00011328,2]
[327114054,1715826632240,-419.2,0.00011378,2]
[327114055,1715826632249,-152.0,0.00011378,2]
[327114056,1715826632258,-499.99,0.00011454,2]
[327114057,1715826632267,-457.52911222,0.00011999,2]
[327114058,1715826632276,-1000.0,0.00012,2]
[327114059,1715826632285,-410.06659556,0.00012,2]
[327114061,1715826632294,-1230.58887613,0.00012,2]
[327114063,1715826632306,-1474.09241909,0.00012,2]
[327114065,1715826632317,-364.18813852,0.00012,2]
[327114066,1715826632328,-1087.10900317,0.00012,2]
[327114067,1715826632339,-664.03948097,0.00012,2]
[327114068,1715826632349,-179.98208212,0.00012,2]
[327114069,1715826632359,-1034.95627484,0.00012148,2]
[327114070,1715826632370,-3002.23633276,0.00012148,2]
[327114071,1715826632381,-9313.21597719,0.00012148,2]
[327114072,1715826632392,-1825.83409328,0.00012148,2]
[327114188,1715826637812,-308.37,0.00011473,2]
[327114190,1715826637823,-49.96485164,0.00012148,2]
[327114192,1715826638075,-573.2828905,0.00012148,2]
[327114193,1715826638087,-3769.18033551,0.00012148,2]
[327114194,1715826638099,-35.0444492,0.00012148,2]
[327114195,1715826638108,-800.0,0.0001215,2]
[327114196,1715826638119,-3081.2107,0.00012174,2]
[327114197,1715826638134,-180.0,0.00012175,2]
[327114198,1715826638156,-754.3237,0.00012178,2]
[327114199,1715826638172,-2432.94020931,0.00012178,2]
[327114200,1715826638196,-5067.05979069,0.00012178,2]
[327114201,1715826638216,-156.59507089,0.00012178,2]
[327114202,1715826638235,-156.59507087,0.00012179,2]
[327114203,1715826638252,-156.59507087,0.00012179,2]
[327114204,1715826638266,-156.59507087,0.0001218,2]
[327114205,1715826638283,-580.8,0.00012235,2]
[327114206,1715826638300,-171.11349026,0.00012268,2]
[327114207,1715826638321,-171.11349026,0.0001227,2]
[327114208,1715826638333,-1151.67134529,0.00012272,2]
[327114209,1715826638352,-7146.2938,0.00012272,2]
[327114211,1715826638390,-18261.65070178,0.00012272,2]
[327114212,1715826638422,-672.57,0.00012272,2]
[327114213,1715826638456,-603.45575644,0.00012272,2]
[327114214,1715826638479,-910.60655848,0.00012272,2]
[327114215,1715826638503,-1318825.2767493,0.00012272,2]
[327114216,1715826638524,-66897.71860255,0.00012272,2]
[327114217,1715826638540,-12025.50240104,0.00012274,2]
[327114218,1715826638560,-7944.81792,0.00012274,2]
[327114224,1715826639952,-1382.61525953,0.00012274,2]
[327114225,1715826639964,-2128.93394416,0.00012274,2]
[327114226,1715826639977,-6681.95458036,0.00012274,2]
[327114227,1715826639989,-688.15196471,0.00012274,2]
[327114228,1715826640227,-495.28604812,0.00012274,2]
[327114229,1715826640240,-631.33700009,0.00012274,2]
[327114230,1715826640252,-345.59999998,0.00012274,2]
[327114231,1715826640264,-389.72999925,0.00012274,2]
[327114232,1715826640276,-505.53116172,0.00012274,2]
[327114233,1715826640289,-2311.41,0.00012274,2]
[327114234,1715826640301,-617.42097586,0.00012274,2]
[327114235,1715826640314,-339.25813426,0.00012274,2]
[327114236,1715826640327,-652.20074213,0.00012274,2]
[327114237,1715826640340,-959.199,0.00012274,2]
[327114238,1715826640352,-680.51216495,0.00012274,2]
[327114240,1715826640507,-1163.68068873,0.00012274,2]
[327114242,1715826640520,-7225.95188826,0.00012274,2]
[327114246,1715826642879,-695.60922301,0.00012274,2]
[327114248,1715826642893,-131814.29690384,0.00012274,2]
[327114250,1715826642903,-32049.0,0.00012274,2]
[327114251,1715826642913,-314.051611,0.00012275,2]
[327114253,1715826642923,-314.051611,0.00012275,2]
[327114254,1715826642932,-314.051611,0.00012275,2]
[327114255,1715826642942,-314.051611,0.00012275,2]
[327114256,1715826642951,-314.051611,0.00012275,2]
[327114257,1715826642960,-314.051611,0.00012275,2]
[327114258,1715826642970,-314.051611,0.00012275,2]
[327114259,1715826642979,-314.051611,0.00012275,2]
[327114260,1715826642988,-314.051611,0.00012275,2]
[327114261,1715826642999,-314.051611,0.00012275,2]